bitfinex/quotes_BTCUSD_20241001
["timestamp","ask_amount","ask_price","bid_price","bid_amount"]
[1727745666632,0.66464968,63647.0,63646.0,0.002646]
[1727745667891,0.5082029,63647.0,63646.0,0.002646]
[1727745668526,0.4835738,63647.0,63646.0,0.002646]
[1727745669668,0.4555738,63647.0,63646.0,0.002646]
[1727745669883,0.3555738,63647.0,63646.0,0.081546]
[1727745671416,0.4555738,63647.0,63646.0,0.081546]
[1727745671803,0.48020098,63647.0,63646.0,0.081546]
[1727745672770,0.4555738,63647.0,63646.0,0.081546]
[1727745674611,0.31669929,63647.0,63646.0,0.081546]
[1727745674848,0.29318158,63647.0,63646.0,0.081546]
[1727745675074,0.199116,63647.0,63646.0,0.081546]
[1727745675315,0.27918158,63647.0,63646.0,0.081546]
[1727745675560,0.157116,63647.0,63646.0,0.227846]
[1727745675807,0.20415067,63647.0,63646.0,0.227846]
[1727745676064,0.19574205,63647.0,63646.0,0.227846]
[1727745676805,0.20974205,63647.0,63646.0,0.227846]
[1727745677033,0.19574205,63647.0,63646.0,0.227846]
[1727745677704,0.18674205,63647.0,63646.0,0.227846]
[1727745678138,0.19574205,63647.0,63646.0,0.227846]
[1727745678344,0.166116,63647.0,63646.0,0.227846]
[1727745678562,0.162116,63647.0,63646.0,0.227846]
[1727745679013,0.169116,63647.0,63646.0,0.227846]
[1727745680295,0.21615067,63647.0,63646.0,0.227846]
[1727745682704,0.169116,63647.0,63646.0,0.227846]
[1727745682946,0.169116,63647.0,63646.0,0.23889005]
[1727745683159,0.169116,63647.0,63646.0,0.24089005]
[1727745683374,0.012,63647.0,63646.0,0.24089005]
[1727745683579,0.169116,63647.0,63646.0,0.24089005]
[1727745683782,0.164116,63647.0,63646.0,0.24089005]
[1727745683992,0.157116,63647.0,63646.0,0.24089005]
[1727745684200,0.161116,63647.0,63646.0,0.24089005]
[1727745684931,0.167116,63647.0,63646.0,0.24089005]
[1727745686009,0.19173895,63647.0,63646.0,0.23889005]
[1727745686233,0.26233813,63647.0,63646.0,0.227846]
[1727745686445,0.28552268,63647.0,63646.0,0.001646]
[1727745686691,0.19173895,63647.0,63646.0,0.001646]
[1727745686901,0.33293731,63647.0,63646.0,0.001646]
[1727745687111,0.19173895,63647.0,63646.0,0.001646]
[1727745687329,0.34990679,63647.0,63646.0,0.001646]
[1727745687551,0.47290679,63647.0,63646.0,0.001646]
[1727745687761,0.48690679,63647.0,63646.0,0.001646]
[1727745687945,0.50090679,63647.0,63646.0,0.001646]
[1727745688215,0.47290679,63647.0,63646.0,0.001646]
[1727745688406,0.46228384,63647.0,63646.0,0.001646]
[1727745688645,0.47628384,63647.0,63646.0,0.001646]
[1727745688893,0.46228384,63647.0,63646.0,0.001646]
[1727745690221,0.44828384,63647.0,63646.0,0.001646]
[1727745690432,0.46228384,63647.0,63646.0,0.001646]
[1727745690645,0.47628384,63647.0,63646.0,0.001646]
[1727745690854,0.44828384,63647.0,63646.0,0.001646]
[1727745691308,0.47628384,63647.0,63646.0,0.001646]
[1727745691520,0.46228384,63647.0,63646.0,0.001646]
[1727745691761,0.48691197,63647.0,63646.0,0.001646]
[1727745691989,0.5736515,63647.0,63646.0,0.001646]
[1727745692433,0.50091197,63647.0,63646.0,0.001646]
[1727745692658,0.47791197,63647.0,63646.0,0.001646]
[1727745692865,0.619165,63647.0,63646.0,0.001646]
[1727745693304,0.36620193,63647.0,63646.0,0.083046]
[1727745693518,0.35220193,63647.0,63646.0,0.083046]
[1727745693939,0.36620193,63647.0,63646.0,0.083046]
[1727745694166,0.35220193,63647.0,63646.0,0.083046]
[1727745694420,0.33820193,63647.0,63646.0,0.083046]
[1727745694632,0.19574413,63647.0,63646.0,0.083046]
[1727745694852,0.20974413,63647.0,63646.0,0.083046]
[1727745695088,0.18174413,63647.0,63646.0,0.083046]
[1727745695354,0.32744383,63647.0,63646.0,0.083046]
[1727745695556,0.19574413,63647.0,63646.0,0.083046]
[1727745695957,0.31344318,63647.0,63646.0,0.083046]
[1727745696174,0.31344118,63647.0,63646.0,0.083046]
[1727745696409,0.19574413,63647.0,63646.0,0.083046]
[1727745696620,0.18174413,63647.0,63646.0,0.083046]
[1727745696845,0.19074413,63647.0,63646.0,0.083046]
[1727745697102,0.19974413,63647.0,63646.0,0.083046]
[1727745697345,0.33820193,63647.0,63646.0,0.001646]
[1727745697555,0.34920193,63647.0,63646.0,0.001646]
[1727745697780,0.40580823,63647.0,63646.0,0.001646]
[1727745698257,0.40180823,63647.0,63646.0,0.001646]
[1727745698477,0.3831801,63647.0,63646.0,0.001646]
[1727745698690,0.3971801,63647.0,63646.0,0.001646]
[1727745700370,0.4645738,63647.0,63646.0,0.001646]
[1727745700589,0.4695738,63647.0,63646.0,0.001646]
[1727745701243,0.4555738,63647.0,63646.0,0.001646]
[1727745701460,0.4415738,63647.0,63646.0,0.001646]
[1727745701683,0.48020281,63647.0,63646.0,0.001646]
[1727745701932,0.48020281,63647.0,63637.0,0.001644]
[1727745701933,0.257138,63638.0,63637.0,0.001644]
[1727745702146,0.285138,63638.0,63637.0,0.001644]
[1727745702609,0.44407831,63638.0,63637.0,0.001644]
[1727745702851,0.285138,63638.0,63637.0,0.001644]
[1727745703066,0.30977013,63638.0,63637.0,0.001644]
[1727745703490,0.61035635,63638.0,63637.0,0.001644]
[1727745703702,0.76681415,63638.0,63637.0,0.001644]
[1727745704125,0.63914428,63638.0,63637.0,0.001644]
[1727745704348,0.62514428,63638.0,63637.0,0.001644]
[1727745704576,0.65314428,63638.0,63637.0,0.001644]
[1727745705016,0.63914428,63638.0,63637.0,0.001644]
[1727745705242,0.66501535,63638.0,63637.0,0.001644]
[1727745705461,0.520099,63638.0,63637.0,0.001644]
[1727745705681,0.67901535,63638.0,63637.0,0.001644]
[1727745706562,0.520099,63638.0,63637.0,0.001644]
[1727745707268,0.492099,63638.0,63637.0,0.001644]
[1727745707970,0.506099,63638.0,63637.0,0.001644]
[1727745708699,0.48146687,63638.0,63637.0,0.001644]
[1727745708917,0.49546687,63638.0,63637.0,0.001644]
[1727745709434,0.48146687,63638.0,63637.0,0.001644]
[1727745710162,0.45346687,63638.0,63637.0,0.001644]
[1727745710392,0.46746687,63638.0,63637.0,0.001644]
[1727745711118,0.48146687,63638.0,63637.0,0.001644]
[1727745711597,0.45346687,63638.0,63637.0,0.001644]
[1727745711844,0.50109855,63638.0,63637.0,0.077144]
[1727745712367,0.47809855,63638.0,63637.0,0.077144]
[1727745712863,0.61920079,63638.0,63637.0,0.077144]
[1727745713370,0.47809855,63638.0,63637.0,0.077144]
[1727745713853,0.63454533,63638.0,63637.0,0.077144]
[1727745713856,0.62054533,63638.0,63637.0,0.077144]
[1727745714340,0.63454533,63638.0,63637.0,0.077144]
[1727745714762,0.62054533,63638.0,63637.0,0.077144]
[1727745714975,0.63454533,63638.0,63637.0,0.077144]
[1727745716031,0.47809855,63638.0,63637.0,0.077144]
[1727745717499,0.46409855,63638.0,63637.0,0.077144]
[1727745717737,0.47809855,63638.0,63637.0,0.077144]
[1727745717984,0.46409855,63638.0,63637.0,0.077144]
[1727745718192,0.47809855,63638.0,63637.0,0.077144]
[1727745718401,0.45346687,63638.0,63637.0,0.077144]
[1727745718833,0.43946687,63638.0,63637.0,0.077144]
[1727745719489,0.45346687,63638.0,63637.0,0.077144]
[1727745719706,0.4415958,63638.0,63637.0,0.077144]
[1727745719918,0.3415958,63638.0,63637.0,0.077144]
[1727745720393,0.3275958,63638.0,63637.0,0.077144]
[1727745721254,0.3415958,63638.0,63637.0,0.077144]
[1727745722372,0.48417091,63638.0,63637.0,0.077144]
[1727745722589,0.60717091,63638.0,63637.0,0.001644]
[1727745722813,0.74825705,63638.0,63637.0,0.001644]
[1727745723045,0.60717091,63638.0,63637.0,0.001644]
[1727745723794,0.61217091,63638.0,63637.0,0.001644]
[1727745724040,0.7708597,63638.0,63637.0,0.001644]
[1727745724309,0.77091235,63638.0,63637.0,0.001644]
[1727745724543,0.61217091,63638.0,63637.0,0.001644]
[1727745725246,0.63680431,63638.0,63637.0,0.001644]
[1727745728597,0.62860186,63638.0,63637.0,0.001644]
[1727745731610,0.61217091,63638.0,63637.0,0.001644]
[1727745731843,0.63680432,63638.0,63637.0,0.001644]
[1727745732801,0.49422921,63638.0,63637.0,0.001644]
[1727745734366,0.48922921,63638.0,63637.0,0.001644]
[1727745734803,0.36622921,63638.0,63637.0,0.001644]
[1727745735017,0.3415958,63638.0,63637.0,0.149044]
[1727745735657,0.3415958,63638.0,63637.0,0.230644]
[1727745735872,0.5074835,63638.0,63637.0,0.230644]
[1727745736312,0.36622575,63638.0,63637.0,0.230644]
[1727745736730,0.62936915,63638.0,63637.0,0.230644]
[1727745737416,0.4881114,63638.0,63637.0,0.230644]
[1727745737642,0.36622575,63638.0,63637.0,0.230644]
[1727745737851,0.49422575,63638.0,63637.0,0.001644]
[1727745738316,0.4695958,63638.0,63637.0,0.001644]
[1727745740282,0.60055824,63638.0,63637.0,0.001644]
[1727745740495,0.4415958,63638.0,63637.0,0.151044]
[1727745741431,0.4415958,63638.0,63637.0,0.232044]
[1727745743665,0.60057893,63638.0,63637.0,0.232044]
[1727745743876,0.4415958,63638.0,63637.0,0.232044]
[1727745744080,0.60057893,63638.0,63637.0,0.232044]
[1727745745449,0.4415958,63638.0,63637.0,0.232044]
[1727745746123,0.46622661,63638.0,63637.0,0.232044]
[1727745748610,0.4415958,63638.0,63637.0,0.232044]
[1727745751397,0.185138,63638.0,63637.0,0.232044]
[1727745751876,0.32664427,63638.0,63637.0,0.24330001]
[1727745752091,0.32664427,63638.0,63637.0,0.232044]
[1727745752092,0.185138,63638.0,63637.0,0.232044]
[1727745753026,0.157138,63638.0,63637.0,0.232044]
[1727745753240,0.171138,63638.0,63637.0,0.232044]
[1727745753908,0.193138,63638.0,63637.0,0.232044]
[1727745754118,0.171138,63638.0,63637.0,0.232044]
[1727745754319,0.166138,63638.0,63637.0,0.232044]
[1727745754736,0.177138,63638.0,63637.0,0.232044]
[1727745755085,0.20176597,63638.0,63637.0,0.232044]
[1727745755906,0.19276597,63638.0,63637.0,0.232044]
[1727745756116,0.18176597,63638.0,63637.0,0.232044]
[1727745756329,0.20376597,63638.0,63637.0,0.232044]
[1727745756533,0.19376597,63638.0,63637.0,0.232044]
[1727745756940,0.19076597,63638.0,63637.0,0.232044]
[1727745757144,0.18176597,63638.0,63637.0,0.232044]
[1727745757340,0.19276597,63638.0,63637.0,0.232044]
[1727745757541,0.20276597,63638.0,63637.0,0.232044]
[1727745757742,0.19176597,63638.0,63637.0,0.232044]
[1727745758237,0.179138,63638.0,63637.0,0.232044]
[1727745758890,0.169138,63638.0,63637.0,0.232044]
[1727745759110,0.3255958,63638.0,63637.0,0.232044]
[1727745759336,0.3365958,63638.0,63637.0,0.001644]
[1727745759787,0.3565958,63638.0,63637.0,0.001644]
[1727745760193,0.3365958,63638.0,63637.0,0.001644]
[1727745760390,0.50668873,63638.0,63637.0,0.001644]
[1727745760647,0.50868873,63638.0,63637.0,0.001644]
[1727745761090,0.60868873,63638.0,63637.0,0.001644]
[1727745761332,0.61368873,63638.0,63637.0,0.001644]
[1727745761536,0.62768873,63638.0,63637.0,0.001644]
[1727745761765,0.65232064,63638.0,63637.0,0.001644]
[1727745762103,0.64032064,63638.0,63637.0,0.001644]
[1727745762618,0.65432064,63638.0,63637.0,0.001644]
[1727745762820,0.64032064,63638.0,63637.0,0.001644]
[1727745763020,0.65432064,63638.0,63637.0,0.001644]
[1727745763222,0.66832064,63638.0,63637.0,0.001644]
[1727745763597,0.65432064,63638.0,63637.0,0.001644]
[1727745763823,0.62632064,63638.0,63637.0,0.001644]
[1727745764023,0.65432064,63638.0,63637.0,0.001644]
[1727745764574,0.64032064,63638.0,63637.0,0.001644]
[1727745765275,0.62632064,63638.0,63637.0,0.001644]
[1727745765713,0.64032064,63638.0,63637.0,0.001644]
[1727745766180,0.65432064,63638.0,63637.0,0.001644]
[1727745766608,0.64032064,63638.0,63637.0,0.001644]
[1727745767062,0.48706555,63638.0,63637.0,0.077144]
[1727745767693,0.50106555,63638.0,63637.0,0.077144]
[1727745768354,0.47643364,63638.0,63637.0,0.077144]
[1727745769045,0.46243364,63638.0,63637.0,0.077144]
[1727745769250,0.44843364,63638.0,63637.0,0.077144]
[1727745769452,0.46243364,63638.0,63637.0,0.077144]
[1727745769661,0.44843364,63638.0,63637.0,0.077144]
[1727745769866,0.46243364,63638.0,63637.0,0.077144]
[1727745770080,0.47643364,63638.0,63637.0,0.077144]
[1727745770293,0.46243364,63638.0,63637.0,0.077144]
[1727745771040,0.47643364,63638.0,63637.0,0.077144]
[1727745771790,0.50106484,63638.0,63637.0,0.077144]
[1727745772537,0.65751162,63638.0,63637.0,0.077144]
[1727745776921,0.66251162,63638.0,63637.0,0.001644]
[1727745778355,0.63788042,63638.0,63637.0,0.001644]
[1727745778565,0.62388042,63638.0,63637.0,0.001644]
[1727745778766,0.63788042,63638.0,63637.0,0.001644]
[1727745778975,0.62388042,63638.0,63637.0,0.001644]
[1727745779411,0.63788042,63638.0,63637.0,0.001644]
[1727745780213,0.60988042,63638.0,63637.0,0.001644]
[1727745780418,0.62388042,63638.0,63637.0,0.001644]
[1727745780569,0.63788042,63638.0,63637.0,0.001644]
[1727745780773,0.46743364,63638.0,63637.0,0.001644]
[1727745781211,0.48143364,63638.0,63637.0,0.001644]
[1727745781567,0.32429564,63638.0,63629.0,0.0806]
[1727745781786,0.280168,63626.0,63625.0,0.0490709]
[1727745781982,0.60076141,63626.0,63625.0,0.0490709]
[1727745782200,0.157183,63620.0,63619.0,0.1393]
[1727745782397,0.50077641,63620.0,63619.0,0.1393]
[1727745783988,0.52877641,63620.0,63619.0,0.1393]
[1727745784201,0.51477641,63620.0,63619.0,0.1393]
[1727745784501,0.52877641,63620.0,63619.0,0.1393]
[1727745785182,0.51477641,63620.0,63619.0,0.1393]
[1727745785856,0.51477641,63620.0,63619.0,0.140946]
[1727745786356,0.52877641,63620.0,63619.0,0.140946]
[1727745786566,0.53941256,63620.0,63619.0,0.140946]
[1727745786803,0.55341256,63620.0,63619.0,0.140946]
[1727745787012,0.53941256,63620.0,63619.0,0.140946]
[1727745787487,0.55341256,63620.0,63619.0,0.140946]
[1727745787693,0.56521699,63620.0,63619.0,0.140946]
[1727745788207,0.54058084,63620.0,63619.0,0.140946]
[1727745788733,0.51758084,63620.0,63619.0,0.140946]
[1727745789390,0.50358084,63620.0,63619.0,0.140946]
[1727745790054,0.51758084,63620.0,63619.0,0.140946]
[1727745790271,0.65886908,63620.0,63619.0,0.140946]
[1727745791469,0.51758084,63620.0,63619.0,0.140946]
[1727745793480,0.54058084,63620.0,63619.0,0.140946]
[1727745793710,0.69956835,63620.0,63619.0,0.001646]
[1727745794373,0.54058084,63620.0,63619.0,0.001646]
[1727745794852,0.52658084,63620.0,63619.0,0.001646]
[1727745795314,0.54058084,63620.0,63619.0,0.001646]
[1727745795741,0.51258084,63620.0,63619.0,0.001646]
[1727745795969,0.55121848,63620.0,63619.0,0.001646]
[1727745796189,0.56521848,63620.0,63619.0,0.001646]
[1727745796409,0.55121848,63620.0,63619.0,0.001646]
[1727745796833,0.56521848,63620.0,63619.0,0.001646]
[1727745797051,0.53721848,63620.0,63619.0,0.001646]
[1727745797935,0.81266526,63620.0,63619.0,0.001646]
[1727745798147,0.157198,63614.0,63613.0,0.0493881]
[1727745798384,0.3366558,63614.0,63613.0,0.0493881]
[1727745798613,0.3366558,63614.0,63607.0,0.0813]
[1727745798614,0.157212,63608.0,63607.0,0.0813]
[1727745798835,0.47780541,63608.0,63607.0,0.0813]
[1727745801055,0.49180541,63608.0,63607.0,0.0813]
[1727745801677,0.50580541,63608.0,63607.0,0.0813]
[1727745802508,0.49180541,63608.0,63607.0,0.0813]
[1727745802939,0.50580541,63608.0,63607.0,0.0813]
[1727745804966,0.53044622,63608.0,63607.0,0.0813]
[1727745805238,0.20985281,63608.0,63607.0,0.2245]
[1727745805740,0.32747864,63608.0,63607.0,0.2245]
[1727745806278,0.31347864,63608.0,63607.0,0.2245]
[1727745806533,0.32547864,63608.0,63607.0,0.2245]
[1727745806789,0.31147864,63608.0,63607.0,0.2245]
[1727745807290,0.32247864,63608.0,63607.0,0.2245]
[1727745807535,0.31147864,63608.0,63607.0,0.2245]
[1727745807781,0.28583783,63608.0,63607.0,0.2245]
[1727745808031,0.157212,63608.0,63607.0,0.2245]
[1727745808268,0.169212,63608.0,63607.0,0.2245]
[1727745808789,0.157212,63608.0,63607.0,0.2245]
[1727745809031,0.169212,63608.0,63607.0,0.2245]
[1727745809504,0.157212,63608.0,63607.0,0.226146]
[1727745810268,0.168212,63608.0,63607.0,0.226146]
[1727745810759,0.178212,63608.0,63607.0,0.226146]
[1727745810972,0.189212,63608.0,63607.0,0.226146]
[1727745811183,0.21385196,63608.0,63607.0,0.226146]
[1727745812082,0.189212,63608.0,63607.0,0.226146]
[1727745813303,0.30685863,63608.0,63607.0,0.226146]
[1727745814188,0.189212,63608.0,63607.0,0.226146]
[1727745814435,0.30685863,63608.0,63607.0,0.226146]
[1727745815352,0.33149841,63608.0,63607.0,0.226146]
[1727745816430,0.21385178,63608.0,63607.0,0.226146]
[1727745818229,0.189212,63608.0,63607.0,0.226146]
[1727745824656,0.21385132,63608.0,63607.0,0.226146]
[1727745825539,0.21385132,63608.0,63607.0,0.228146]
[1727745825763,0.05663932,63608.0,63607.0,0.24977962]
[1727745826211,0.05663932,63608.0,63607.0,0.01327962]
[1727745826212,0.44964106,63608.0,63607.0,0.01327962]
[1727745826423,0.21385132,63608.0,63607.0,0.01327962]
[1727745826627,0.21385132,63608.0,63607.0,0.001646]
[1727745826841,0.19285132,63608.0,63607.0,0.001646]
[1727745827250,0.19285132,63608.0,63607.0,0.002646]
[1727745827456,0.18185132,63608.0,63607.0,0.001646]
[1727745827867,0.19385132,63608.0,63607.0,0.001646]
[1727745828290,0.167212,63608.0,63607.0,0.001646]
[1727745828713,0.178212,63608.0,63607.0,0.001646]
[1727745830496,0.3346698,63608.0,63607.0,0.001646]
[1727745831542,0.35931065,63608.0,63607.0,0.001646]
[1727745833003,0.20285285,63608.0,63607.0,0.139046]
[1727745833417,0.20285285,63608.0,63607.0,0.15077879]
[1727745834046,0.20285285,63608.0,63607.0,0.23297879]
[1727745834047,0.36219306,63608.0,63607.0,0.23297879]
[1727745834267,0.20285285,63608.0,63607.0,0.23297879]
[1727745836323,0.20285285,63608.0,63607.0,0.221246]
[1727745836756,0.20285285,63608.0,63607.0,0.23297879]
[1727745838030,0.178212,63608.0,63607.0,0.221246]
[1727745839607,0.178212,63608.0,63607.0,0.21974303]
[1727745840742,0.178212,63608.0,63607.0,0.22674303]
[1727745840743,0.021,63608.0,63607.0,0.22674303]
[1727745840987,0.178212,63608.0,63607.0,0.24347582]
[1727745841433,0.178212,63608.0,63607.0,0.24147582]
[1727745841668,0.157212,63608.0,63607.0,0.24347582]
[1727745841897,0.157205,63611.0,63610.0,0.2377]
[1727745842121,0.45604287,63613.0,63612.0,0.2377]
[1727745842122,0.157202,63613.0,63612.0,0.2377]
[1727745842552,0.157202,63613.0,63612.0,0.24936345]
[1727745842770,0.25157355,63613.0,63612.0,0.24936345]
[1727745842998,0.157202,63613.0,63612.0,0.2377]
[1727745843211,0.25154912,63613.0,63612.0,0.24936345]
[1727745843423,0.25154912,63613.0,63612.0,0.2377]
[1727745843641,0.25154912,63613.0,63612.0,0.24936345]
[1727745843884,0.27516927,63613.0,63612.0,0.2377]
[1727745844111,0.157202,63613.0,63612.0,0.24736345]
[1727745844328,0.157202,63613.0,63612.0,0.2307]
[1727745844550,0.16627508,63613.0,63607.0,0.07944303]
[1727745844803,0.16627508,63613.0,63607.0,0.08444303]
[1727745844804,0.157212,63608.0,63607.0,0.08444303]
[1727745847153,0.159212,63608.0,63607.0,0.08444303]
[1727745847373,0.157212,63608.0,63607.0,0.08444303]
[1727745847589,0.162212,63608.0,63607.0,0.08444303]
[1727745847800,0.169212,63608.0,63607.0,0.08444303]
[1727745848011,0.169212,63608.0,63607.0,0.07944303]
[1727745848212,0.164212,63608.0,63607.0,0.07944303]
[1727745848703,0.173212,63608.0,63607.0,0.08444303]
[1727745848936,0.173212,63608.0,63607.0,0.07944303]
[1727745849868,0.173212,63608.0,63607.0,0.00014303]
[1727745849869,0.31474345,63608.0,63607.0,0.00014303]
[1727745850107,0.173212,63608.0,63607.0,0.00014303]
[1727745850815,0.164212,63608.0,63607.0,0.00014303]
[1727745851093,0.3456698,63608.0,63607.0,0.00014303]
[1727745851329,0.51189268,63608.0,63607.0,0.00014303]
[1727745851565,0.3526698,63608.0,63607.0,0.00014303]
[1727745851809,0.37731052,63608.0,63607.0,0.00014303]
[1727745852068,0.35714394,63608.0,63607.0,0.00014303]
[1727745852309,0.19785272,63608.0,63607.0,0.00014303]
[1727745854988,0.35714394,63608.0,63607.0,0.00014303]
[1727745855434,0.35714294,63608.0,63607.0,0.00014303]
[1727745856123,0.19785272,63608.0,63607.0,0.00014303]
[1727745856594,0.19867572,63608.0,63607.0,0.00014303]
[1727745857053,0.32981284,63608.0,63607.0,0.00014303]
[1727745857287,0.37813352,63608.0,63607.0,0.00014303]
[1727745857523,0.47343793,63608.0,63607.0,0.00014303]
[1727745858466,0.53979721,63608.0,63607.0,0.00014303]
[1727745859171,0.53279721,63608.0,63607.0,0.00014303]
[1727745859865,0.54679721,63608.0,63607.0,0.00014303]
[1727745860311,0.70324399,63608.0,63607.0,0.00014303]
[1727745860312,0.68924399,63608.0,63607.0,0.00014303]
[1727745860561,0.71724399,63608.0,63607.0,0.00014303]
[1727745861082,0.68924399,63608.0,63607.0,0.00014303]
[1727745861304,0.77902501,63608.0,63607.0,0.00014303]
[1727745861752,0.58544023,63608.0,63607.0,0.00014303]
[1727745861971,0.48239721,63608.0,63607.0,0.00014303]
[1727745864849,0.5070402,63608.0,63607.0,0.00014303]
[1727745865776,0.66348698,63608.0,63607.0,0.00014303]
[1727745865991,0.73911219,63608.0,63607.0,0.00014303]
[1727745866217,0.5070402,63608.0,63607.0,0.00014303]
[1727745868574,0.48239721,63608.0,63607.0,0.00014303]
[1727745871113,0.48239721,63608.0,63607.0,0.07674303]
[1727745871114,0.37739721,63608.0,63607.0,0.07674303]
[1727745871343,0.186035,63608.0,63607.0,0.21654303]
[1727745871570,0.186035,63608.0,63607.0,0.22828008]
[1727745871811,0.3520165,63608.0,63607.0,0.22828008]
[1727745872030,0.21067461,63608.0,63607.0,0.21654303]
[1727745872950,0.35202771,63608.0,63607.0,0.21654303]
[1727745873159,0.19667461,63608.0,63607.0,0.21654303]
[1727745873409,0.21067461,63608.0,63607.0,0.21654303]
[1727745873894,0.19667461,63608.0,63607.0,0.22154303]
[1727745874147,0.31446058,63608.0,63607.0,0.22154303]
[1727745874366,0.30489636,63608.0,63607.0,0.22154303]
[1727745874602,0.19667461,63608.0,63607.0,0.22354303]
[1727745874886,0.28133897,63608.0,63607.0,0.22354303]
[1727745875129,0.03946261,63608.0,63607.0,0.22854303]
[1727745875385,0.19667461,63608.0,63607.0,0.22854303]
[1727745875674,0.20567461,63608.0,63607.0,0.24028008]
[1727745875920,0.19667461,63608.0,63607.0,0.24028008]
[1727745876441,0.18267461,63608.0,63607.0,0.24028008]
[1727745876679,0.18867461,63608.0,63607.0,0.24028008]
[1727745877162,0.18667461,63608.0,63607.0,0.24028008]
[1727745877426,0.19167461,63608.0,63607.0,0.24028008]
[1727745878171,0.167035,63608.0,63607.0,0.24028008]
[1727745880324,0.167035,63608.0,63607.0,0.22854303]
[1727745880835,0.167035,63608.0,63607.0,0.24020938]
[1727745881318,0.19167223,63608.0,63607.0,0.22654303]
[1727745881542,0.2387631,63608.0,63607.0,0.22654303]
[1727745881751,0.2387631,63608.0,63607.0,0.22154303]
[1727745881970,0.26230853,63608.0,63607.0,0.22154303]
[1727745882198,0.2376713,63608.0,63607.0,0.22354303]
[1727745884310,0.26230896,63608.0,63607.0,0.22354303]
[1727745884514,0.23875476,63608.0,63607.0,0.22354303]
[1727745884722,0.19167266,63608.0,63607.0,0.22354303]
[1727745884923,0.19167266,63608.0,63607.0,0.24016473]
[1727745885338,0.19167266,63608.0,63607.0,0.22854303]
[1727745885542,0.19167266,63608.0,63607.0,0.24016473]
[1727745885963,0.19167266,63608.0,63607.0,0.22854303]
[1727745886168,0.03446066,63608.0,63607.0,0.22854303]
[1727745886375,0.03446066,63608.0,63607.0,0.24016473]
[1727745887445,0.19167266,63608.0,63607.0,0.24016473]
[1727745887696,0.19167266,63608.0,63607.0,0.22854303]
[1727745888147,0.19167266,63608.0,63607.0,0.24016473]
[1727745888390,0.167035,63608.0,63607.0,0.24016473]
[1727745888849,0.167035,63608.0,63607.0,0.22854303]
[1727745889567,0.23764816,63608.0,63607.0,0.22154303]
[1727745889818,0.26118588,63608.0,63607.0,0.21654303]
[1727745890083,0.26120861,63608.0,63607.0,0.21654303]
[1727745890772,0.26120861,63608.0,63607.0,0.21854303]
[1727745891488,0.167035,63608.0,63607.0,0.21854303]
[1727745891731,0.28584718,63608.0,63607.0,0.21854303]
[1727745892245,0.19167357,63608.0,63607.0,0.21854303]
[1727745893333,0.28585192,63608.0,63607.0,0.21854303]
[1727745894038,0.28585192,63608.0,63607.0,0.21654303]
[1727745894774,0.19167357,63608.0,63607.0,0.21654303]
[1727745895018,0.28585192,63608.0,63607.0,0.21654303]
[1727745895514,0.19167357,63608.0,63607.0,0.21654303]
[1727745895763,0.19167357,63608.0,63607.0,0.21854303]
[1727745895764,0.28585192,63608.0,63607.0,0.21854303]
[1727745895992,0.19167357,63608.0,63607.0,0.21854303]
[1727745896200,0.28585192,63608.0,63607.0,0.21854303]
[1727745897527,0.19167357,63608.0,63607.0,0.21854303]
[1727745897747,0.28585192,63608.0,63607.0,0.21854303]
[1727745897967,0.28585192,63608.0,63607.0,0.21654303]
[1727745898441,0.26121335,63608.0,63607.0,0.21654303]
[1727745900184,0.26121335,63608.0,63607.0,0.21854303]
[1727745901057,0.167035,63608.0,63607.0,0.21654303]
[1727745901477,0.26120617,63608.0,63607.0,0.21654303]
[1727745902343,0.167035,63608.0,63607.0,0.21654303]
[1727745902552,0.23766195,63608.0,63607.0,0.21654303]
[1727745902756,0.26230023,63608.0,63607.0,0.21654303]
[1727745904537,0.19167328,63608.0,63607.0,0.21654303]
[1727745904766,0.28584445,63608.0,63607.0,0.21654303]
[1727745904976,0.28584445,63608.0,63607.0,0.00014303]
[1727745904977,0.19167328,63608.0,63607.0,0.00014303]
[1727745905832,0.19167328,63608.0,63607.0,0.00214303]
[1727745906127,0.28586233,63608.0,63607.0,0.00014303]
[1727745906335,0.28586233,63608.0,63607.0,0.21174303]
[1727745906555,0.03446128,63608.0,63607.0,0.21174303]
[1727745906759,0.08155804,63608.0,63607.0,0.22174303]
[1727745906989,0.23877004,63608.0,63607.0,0.23338918]
[1727745907200,0.19167328,63608.0,63607.0,0.23338918]
[1727745907436,0.19167328,63608.0,63607.0,0.22174303]
[1727745907641,0.03446128,63608.0,63607.0,0.23538248]
[1727745907854,0.19167328,63608.0,63607.0,0.23538248]
[1727745908299,0.167035,63608.0,63607.0,0.23538248]
[1727745908769,0.167035,63608.0,63607.0,0.22374303]
[1727745909239,0.009823,63608.0,63607.0,0.22374303]
[1727745909487,0.167035,63608.0,63607.0,0.23538248]
[1727745909693,0.009823,63608.0,63607.0,0.23538248]
[1727745909938,0.167035,63608.0,63607.0,0.23538248]
[1727745911341,0.21414709,63608.0,63607.0,0.22374303]
[1727745911834,0.23878443,63608.0,63607.0,0.22374303]
[1727745913147,0.26234048,63608.0,63607.0,0.22374303]
[1727745913576,0.2859678,63608.0,63607.0,0.00014303]
[1727745913792,0.33300863,63608.0,63607.0,0.00014303]
[1727745914005,0.19167234,63608.0,63607.0,0.00014303]
[1727745914849,0.58347692,63608.0,63607.0,0.00014303]
[1727745915073,0.42703014,63608.0,63607.0,0.00014303]
[1727745915736,0.609784,63608.0,63607.0,0.00014303]
[1727745915963,0.623784,63608.0,63607.0,0.00014303]
[1727745916194,0.650784,63608.0,63607.0,0.00014303]
[1727745916401,0.636784,63608.0,63607.0,0.00014303]
[1727745916810,0.637784,63608.0,63607.0,0.00014303]
[1727745917906,0.651784,63608.0,63607.0,0.00014303]
[1727745918357,0.62714666,63608.0,63607.0,0.00014303]
[1727745920630,0.63214666,63608.0,63607.0,0.00014303]
[1727745925741,0.6567886,63608.0,63607.0,0.00014303]
[1727745928344,0.63214666,63608.0,63607.0,0.00014303]
[1727745928560,0.88859344,63608.0,63607.0,0.00014303]
[1727745928831,0.73214666,63608.0,63607.0,0.00014303]
[1727745932834,0.75678916,63608.0,63607.0,0.00014303]
[1727745934324,0.67788916,63608.0,63607.0,0.00014303]
[1727745934989,0.83692365,63608.0,63607.0,0.00014303]
[1727745935212,0.67788916,63608.0,63607.0,0.00014303]
[1727745935646,0.61508521,63608.0,63607.0,0.00014303]
[1727745936304,0.69498521,63608.0,63607.0,0.00014303]